bitfinex/quotes_BTCUSD_20240701
["timestamp","ask_amount","ask_price","bid_price","bid_amount"]
[1719797245856,0.01484,63528.0,63527.0,0.011]
[1719797246063,0.01584,63528.0,63527.0,0.011]
[1719797246274,0.01684,63528.0,63527.0,0.013]
[1719797246484,0.00084,63528.0,63527.0,0.005]
[1719797246910,0.00084,63528.0,63527.0,0.007]
[1719797246911,0.00184,63528.0,63527.0,0.007]
[1719797247129,0.00184,63528.0,63527.0,0.005]
[1719797247348,0.00184,63528.0,63527.0,0.011]
[1719797247349,0.00284,63528.0,63527.0,0.011]
[1719797248689,0.00284,63528.0,63527.0,0.007]
[1719797248885,0.00384,63528.0,63527.0,0.007]
[1719797249423,0.00084,63528.0,63527.0,0.005]
[1719797249641,0.00184,63528.0,63527.0,0.005]
[1719797249850,0.00284,63528.0,63527.0,0.007]
[1719797251370,0.00284,63528.0,63527.0,0.017]
[1719797251581,0.00284,63528.0,63527.0,0.007]
[1719797251582,0.00184,63528.0,63527.0,0.007]
[1719797251832,0.00084,63528.0,63527.0,0.005]
[1719797252110,0.00284,63528.0,63527.0,0.002]
[1719797253310,0.00284,63528.0,63527.0,0.00064905]
[1719797253499,0.00505695,63528.0,63527.0,0.00064905]
[1719797253680,0.00284,63528.0,63521.0,0.00778305]
[1719797253881,0.00284,63528.0,63527.0,0.58558305]
[1719797254094,0.00284,63528.0,63527.0,0.74792203]
[1719797254320,0.00284,63528.0,63527.0,0.16233898]
[1719797254520,0.00284,63528.0,63527.0,0.17012203]
[1719797254743,0.00284,63528.0,63527.0,2.1874347]
[1719797254744,0.00184,63528.0,63527.0,2.1874347]
[1719797254958,0.00284,63528.0,63527.0,2.38428703]
[1719797255155,0.00184,63528.0,63527.0,1.68616103]
[1719797255417,0.00084,63528.0,63527.0,1.88616103]
[1719797255809,0.02884,63528.0,63527.0,1.68616103]
[1719797256024,0.02884,63528.0,63527.0,2.20098703]
[1719797256241,0.02884,63528.0,63527.0,2.00098703]
[1719797256426,0.02884,63528.0,63527.0,1.48616103]
[1719797256647,0.02884,63528.0,63527.0,2.20098703]
[1719797256845,0.02884,63528.0,63527.0,1.68616103]
[1719797257048,0.02884,63528.0,63527.0,1.17133503]
[1719797257469,0.02884,63528.0,63527.0,1.01392203]
[1719797257673,0.02884,63528.0,63527.0,0.81392203]
[1719797258267,0.02884,63528.0,63527.0,0.80613898]
[1719797258485,0.02884,63528.0,63527.0,0.3161]
[1719797258703,0.02884,63528.0,63526.0,0.2]
[1719797259270,0.01484,63528.0,63526.0,0.2]
[1719797259476,0.00084,63528.0,63526.0,0.2]
[1719797259672,0.00284,63528.0,63527.0,0.002]
[1719797259880,0.01684,63528.0,63527.0,0.002]
[1719797260085,0.01684,63528.0,63527.0,0.001]
[1719797261238,0.01484,63528.0,63526.0,0.2]
[1719797261669,0.01484,63528.0,63527.0,0.00778305]
[1719797261868,0.02884,63528.0,63527.0,0.00778305]
[1719797262071,0.04284,63528.0,63527.0,0.00778305]
[1719797262227,0.00084,63528.0,63527.0,0.00778305]
[1719797262640,0.00284,63528.0,63527.0,0.00778305]
[1719797262840,0.00184,63528.0,63527.0,0.00778305]
[1719797263207,0.00184,63528.0,63527.0,0.012]
[1719797264409,0.00284,63528.0,63527.0,0.025]
[1719797264955,0.00184,63528.0,63527.0,0.0008933]
[1719797265164,0.00184,63528.0,63527.0,0.013]
[1719797265573,0.00284,63528.0,63527.0,0.089039]
[1719797265954,0.00284,63528.0,63527.0,0.08862899]
[1719797267231,0.00284,63528.0,63527.0,0.57661588]
[1719797267424,0.00284,63528.0,63527.0,0.83446797]
[1719797268055,0.00184,63528.0,63527.0,0.82187798]
[1719797268306,0.00084,63528.0,63527.0,0.80987798]
[1719797268517,0.01484,63528.0,63527.0,0.80987798]
[1719797268719,0.02884,63528.0,63527.0,0.80987798]
[1719797272601,0.02884,63528.0,63527.0,0.064039]
[1719797273631,0.34814,63528.0,63527.0,0.064039]
[1719797274048,0.35867003,63528.0,63527.0,0.064039]
[1719797274254,0.60847003,63528.0,63527.0,0.064039]
[1719797274685,0.59794,63528.0,63527.0,0.064039]
[1719797275095,0.60847003,63528.0,63527.0,0.064039]
[1719797276625,0.60847003,63528.0,63527.0,0.001]
[1719797277067,1.57882203,63528.0,63527.0,0.001]
[1719797277286,1.57882203,63528.0,63507.0,0.2]
[1719797277287,0.01053003,63516.0,63507.0,0.2]
[1719797277502,0.31173003,63513.0,63507.0,0.36216392]
[1719797277714,0.3012,63513.0,63507.0,0.36216392]
[1719797277927,0.3012,63513.0,63508.0,0.063054]
[1719797278134,0.31173003,63513.0,63508.0,0.063054]
[1719797278816,0.3012,63513.0,63508.0,0.063054]
[1719797279226,0.31173003,63513.0,63508.0,0.063054]
[1719797279434,0.32373003,63513.0,63508.0,0.064054]
[1719797280261,0.3272,63513.0,63508.0,0.065054]
[1719797281200,0.01053003,63511.0,63508.0,0.065054]
[1719797281445,0.3272,63513.0,63508.0,0.065054]
[1719797281446,0.157456,63510.0,63508.0,0.065054]
[1719797281673,0.32543403,63512.0,63508.0,0.065054]
[1719797281674,0.157457,63509.0,63508.0,0.065054]
[1719797281900,0.48290203,63509.0,63508.0,0.065054]
[1719797282138,0.48290203,63509.0,63508.0,0.001]
[1719797282139,1.05081703,63509.0,63508.0,0.001]
[1719797282371,1.36591703,63509.0,63508.0,0.002]
[1719797282609,1.36591703,63509.0,63508.0,0.001]
[1719797283111,1.36691703,63509.0,63508.0,0.012]
[1719797283584,1.46691703,63509.0,63508.0,0.012]
[1719797284248,1.46791703,63509.0,63508.0,0.012]
[1719797284652,0.48291003,63508.0,63507.0,0.16216392]
[1719797284853,0.58291003,63508.0,63507.0,0.16216392]
[1719797285262,0.89783003,63508.0,63507.0,0.16216392]
[1719797285675,0.25746,63508.0,63507.0,0.16216392]
[1719797285900,0.26799003,63508.0,63507.0,0.16216392]
[1719797286151,0.26899003,63508.0,63507.0,0.16216392]
[1719797286362,0.58391003,63508.0,63507.0,0.16216392]
[1719797287014,0.58491003,63508.0,63507.0,0.16216392]
[1719797287438,0.01053003,63506.0,63501.0,0.063992]
[1719797288079,0.01053003,63505.0,63501.0,0.063992]
[1719797288714,0.101,63508.0,63502.0,0.81769186]
[1719797288715,0.001,63508.0,63502.0,0.81769186]
[1719797288948,0.001,63508.0,63502.0,0.97670636]
[1719797288949,0.001,63506.0,63502.0,0.97670636]
[1719797289150,0.001,63506.0,63502.0,0.8954029]
[1719797289404,0.001,63505.0,63502.0,0.8954029]
[1719797289805,0.001,63506.0,63502.0,0.8954029]
[1719797290011,0.01053003,63515.0,63502.0,0.8954029]
[1719797290233,0.001,63506.0,63502.0,0.8964029]
[1719797291072,0.27263003,63516.0,63502.0,0.8964029]
[1719797291073,0.001,63508.0,63502.0,0.8964029]
[1719797291726,0.27263003,63516.0,63502.0,0.8954029]
[1719797291927,0.1,63523.0,63504.0,0.2526]
[1719797292126,0.1,63523.0,63512.0,0.5565]
[1719797292127,0.01053003,63523.0,63512.0,0.5565]
[1719797292298,0.01053003,63523.0,63513.0,0.16233898]
[1719797292673,0.5896,63527.0,63513.0,0.16233898]
[1719797292885,0.001,63515.0,63513.0,0.16233898]
[1719797293098,0.001,63515.0,63513.0,0.16548729]
[1719797293298,0.00084,63528.0,63520.0,0.2]
[1719797293299,0.007,63523.0,63520.0,0.2]
[1719797293570,0.00084,63528.0,63522.0,0.5607]
[1719797293724,0.008,63523.0,63522.0,0.5607]
[1719797294150,0.01053003,63527.0,63522.0,0.5607]
[1719797294360,0.001,63523.0,63522.0,0.5607]
[1719797294798,0.00084,63528.0,63522.0,0.5607]
[1719797294982,0.014,63527.0,63522.0,0.5607]
[1719797295189,0.00084,63528.0,63522.0,0.5607]
[1719797295614,0.001,63523.0,63522.0,0.5717]
[1719797295810,0.00084,63528.0,63522.0,0.5607]
[1719797296064,0.00084,63528.0,63522.0,0.5717]
[1719797296243,0.001,63527.0,63522.0,0.5857]
[1719797296483,0.00084,63528.0,63522.0,0.5747]
[1719797296711,0.001,63523.0,63522.0,0.5717]
[1719797296922,0.001,63523.0,63522.0,0.73403898]
[1719797297132,0.001,63523.0,63522.0,0.74603898]
[1719797297763,0.001,63523.0,63522.0,0.73403898]
[1719797298176,0.00084,63528.0,63522.0,0.72303898]
[1719797298389,0.00084,63528.0,63523.0,0.16548692]
[1719797298619,0.00184,63528.0,63523.0,0.16548692]
[1719797299259,0.00084,63528.0,63525.0,0.2]
[1719797299480,0.00084,63528.0,63525.0,0.16233898]
[1719797299741,0.00184,63528.0,63527.0,0.4634]
[1719797299997,0.00184,63528.0,63527.0,1.7605419]
[1719797300203,0.00184,63528.0,63527.0,2.2753679]
[1719797301385,0.00084,63528.0,63527.0,2.2753679]
[1719797302275,0.00484,63528.0,63527.0,2.2763679]
[1719797303172,0.00084,63528.0,63527.0,2.2753679]
[1719797303624,0.00084,63528.0,63527.0,2.2763679]
[1719797304041,0.00084,63528.0,63527.0,2.2753679]
[1719797304273,0.00084,63528.0,63527.0,2.2763679]
[1719797304481,0.00084,63528.0,63527.0,2.2773679]
[1719797304482,0.00484,63528.0,63527.0,2.2773679]
[1719797304732,0.00484,63528.0,63527.0,2.2753679]
[1719797304733,0.00084,63528.0,63527.0,2.2753679]
[1719797305168,0.00484,63528.0,63527.0,2.11520398]
[1719797306042,0.00084,63528.0,63527.0,2.11420398]
[1719797306329,0.00484,63528.0,63527.0,2.11420398]
[1719797306746,0.00484,63528.0,63527.0,2.11520398]
[1719797307173,0.00484,63528.0,63527.0,2.11420398]
[1719797307395,0.00484,63528.0,63527.0,2.11520398]
[1719797307598,0.00084,63528.0,63527.0,2.11420398]
[1719797308019,0.00484,63528.0,63527.0,2.11520398]
[1719797309205,0.00084,63528.0,63527.0,2.11420398]
[1719797309408,0.00484,63528.0,63527.0,2.11520398]
[1719797310225,0.00484,63528.0,63527.0,2.11420398]
[1719797310470,0.00484,63528.0,63527.0,2.11520398]
[1719797311836,0.00484,63528.0,63527.0,2.17823098]
[1719797312720,0.00484,63528.0,63527.0,2.49305698]
[1719797313187,0.00484,63528.0,63527.0,1.97823098]
[1719797313422,0.00484,63528.0,63527.0,2.17823098]
[1719797313655,0.00484,63528.0,63527.0,2.17723098]
[1719797313885,0.00484,63528.0,63527.0,2.17823098]
[1719797314110,0.00484,63528.0,63527.0,1.97823098]
[1719797314339,0.00484,63528.0,63527.0,2.17723098]
[1719797314572,0.00484,63528.0,63527.0,2.17823098]
[1719797314708,0.00084,63528.0,63527.0,2.17723098]
[1719797315149,0.00484,63528.0,63527.0,2.17823098]
[1719797315348,0.00084,63528.0,63527.0,2.17723098]
[1719797315764,0.00484,63528.0,63527.0,2.17823098]
[1719797317437,0.00484,63528.0,63527.0,2.30905025]
[1719797319222,0.00484,63528.0,63527.0,2.17823098]
[1719797319438,0.00484,63528.0,63527.0,2.30905025]
[1719797319665,0.00484,63528.0,63527.0,2.30805025]
[1719797319880,0.00484,63528.0,63527.0,2.38125025]
[1719797320539,0.00484,63528.0,63527.0,2.38225025]
[1719797321002,0.00484,63528.0,63527.0,2.38125025]
[1719797321230,0.00084,63528.0,63527.0,2.38025025]
[1719797321465,0.00084,63528.0,63527.0,2.38125025]
[1719797321709,0.00484,63528.0,63527.0,2.38125025]
[1719797321923,0.00484,63528.0,63527.0,2.38025025]
[1719797322147,0.00884,63528.0,63527.0,2.38125025]
[1719797322359,0.00884,63528.0,63527.0,0.55718525]
[1719797322568,0.01384,63528.0,63527.0,0.55818525]
[1719797325388,0.26104,63528.0,63527.0,0.265027]
[1719797326378,0.25604,63528.0,63527.0,0.264027]
[1719797326619,0.24804,63528.0,63527.0,0.063027]
[1719797326861,0.25104,63528.0,63527.0,0.064027]
[1719797327080,0.67717003,63528.0,63527.0,0.064027]
[1719797327290,0.67717003,63528.0,63513.0,0.2]
[1719797327502,0.01053003,63526.0,63514.0,0.2932028]
[1719797327720,0.01053003,63526.0,63515.0,0.13086382]
[1719797327965,0.01053003,63526.0,63514.0,0.16233898]
[1719797327966,0.01053003,63526.0,63516.0,0.16233898]
[1719797328372,0.6574,63527.0,63516.0,0.16233898]
[1719797328843,0.6574,63527.0,63521.0,0.2]
[1719797329081,0.1,63527.0,63521.0,0.36216392]
[1719797329307,0.014,63526.0,63521.0,0.5245029]
[1719797329765,0.014,63526.0,63525.0,0.157418]
[1719797329986,0.014,63526.0,63525.0,0.31975698]
[1719797330252,0.014,63526.0,63525.0,0.45059997]
[1719797330466,0.014,63526.0,63525.0,0.29318197]
[1719797331163,0.014,63527.0,63525.0,0.45059997]
[1719797331393,0.028,63527.0,63526.0,0.29318197]
[1719797331602,0.028,63527.0,63526.0,0.51975398]
[1719797331803,0.028,63527.0,63526.0,0.65059299]
[1719797332251,0.014,63527.0,63526.0,0.65059299]
[1719797332506,0.00084,63528.0,63527.0,0.987065]
[1719797332709,0.00084,63528.0,63527.0,1.28024299]
[1719797333967,0.00084,63528.0,63527.0,1.99506899]
[1719797334404,0.00084,63528.0,63527.0,1.9102637]
[1719797334598,0.00084,63528.0,63527.0,2.34435305]
[1719797335034,0.01484,63528.0,63527.0,2.34535305]
[1719797335209,0.01484,63528.0,63527.0,2.4374205]
[1719797335969,0.02884,63528.0,63527.0,2.4374205]
[1719797336177,0.04284,63528.0,63527.0,2.4374205]
[1719797336546,0.04284,63528.0,63527.0,2.34535305]
[1719797336749,0.02884,63528.0,63527.0,2.34535305]
[1719797337193,0.04284,63528.0,63527.0,2.34535305]
[1719797337395,0.04284,63528.0,63527.0,2.46043736]
[1719797337600,0.04284,63528.0,63527.0,2.32983768]
[1719797337803,0.04284,63528.0,63527.0,2.03053151]
[1719797338009,0.04284,63528.0,63527.0,1.68122123]
[1719797338212,0.04284,63528.0,63527.0,2.03054098]
[1719797338438,0.01484,63528.0,63527.0,2.1448425]
[1719797338647,0.02884,63528.0,63527.0,2.1458425]
[1719797338852,0.01484,63528.0,63527.0,2.1458425]
[1719797339281,0.02884,63528.0,63527.0,2.03054098]
[1719797339735,0.02884,63528.0,63527.0,2.14591606]
[1719797340567,0.02884,63528.0,63527.0,1.55040398]
[1719797340791,0.02884,63528.0,63527.0,2.1459191]
[1719797341043,0.02884,63528.0,63527.0,2.14591867]
[1719797341257,0.02884,63528.0,63527.0,1.31571886]
[1719797341483,0.02884,63528.0,63527.0,0.95885367]
[1719797341700,0.02884,63528.0,63527.0,1.07013489]
[1719797341902,0.02884,63528.0,63527.0,0.65157029]
[1719797342116,0.02884,63528.0,63527.0,0.69773744]
[1719797342365,0.02884,63528.0,63527.0,0.65157029]
[1719797342781,0.02884,63528.0,63527.0,0.72081232]
[1719797342995,0.02884,63528.0,63527.0,0.72075198]
[1719797343197,0.02884,63528.0,63527.0,0.85250245]
[1719797343400,0.02884,63528.0,63527.0,0.89867515]
[1719797344455,0.02884,63528.0,63527.0,0.85250245]
[1719797344662,0.02884,63528.0,63527.0,1.21350115]
[1719797344925,0.02884,63528.0,63527.0,1.58592022]
[1719797345132,0.02884,63528.0,63527.0,1.51666166]
[1719797345337,0.02884,63528.0,63527.0,1.23659982]
[1719797345746,0.02884,63528.0,63527.0,1.16732845]
[1719797345951,0.02884,63528.0,63527.0,1.23659982]
[1719797346172,0.02884,63528.0,63527.0,1.23660685]
[1719797346397,0.02884,63528.0,63527.0,1.52833827]
[1719797346615,0.02884,63528.0,63527.0,2.74537529]
[1719797347066,0.02884,63528.0,63527.0,2.81465885]
[1719797347276,0.02884,63528.0,63527.0,2.74537529]
[1719797347549,0.02884,63528.0,63527.0,2.81465885]
[1719797347760,0.02884,63528.0,63527.0,3.16398266]
[1719797347969,0.02884,63528.0,63527.0,3.16298266]
[1719797347970,0.01484,63528.0,63527.0,3.16298266]
[1719797348183,0.01484,63528.0,63527.0,3.16398266]
[1719797348356,0.01484,63528.0,63527.0,2.81465885]
[1719797348569,0.01484,63528.0,63527.0,3.16298438]
[1719797348810,0.02884,63528.0,63527.0,3.16398438]
[1719797349009,0.01484,63528.0,63527.0,3.16398438]
[1719797349244,0.01484,63528.0,63527.0,2.6828323]
[1719797349465,0.02884,63528.0,63527.0,2.81465171]
[1719797349645,0.02884,63528.0,63527.0,3.16397725]
[1719797349881,0.01484,63528.0,63527.0,1.47898625]
[1719797350105,0.01484,63528.0,63527.0,1.16732139]
[1719797350106,0.02884,63528.0,63527.0,1.16732139]
[1719797350313,0.02884,63528.0,63527.0,0.96732139]
[1719797350520,0.02884,63528.0,63527.0,0.83650198]
[1719797350724,0.02884,63528.0,63527.0,1.16733077]
[1719797351164,0.02884,63528.0,63527.0,0.72167598]
[1719797351403,0.02884,63528.0,63527.0,1.16732988]
[1719797351637,0.01484,63528.0,63527.0,1.16632988]
[1719797351849,0.02884,63528.0,63527.0,0.49409088]
[1719797352053,0.00084,63528.0,63527.0,0.49409088]
[1719797352279,0.00084,63528.0,63527.0,0.16326298]
[1719797352489,0.02884,63528.0,63527.0,0.16326298]
[1719797352730,0.01484,63528.0,63527.0,0.16326298]
[1719797353139,0.02884,63528.0,63527.0,0.16326298]
[1719797354028,0.02884,63528.0,63527.0,0.000924]
[1719797354268,0.02884,63528.0,63527.0,0.16326298]
[1719797355228,0.01484,63528.0,63527.0,0.36326298]
[1719797355422,0.01484,63528.0,63527.0,0.16326298]
[1719797355423,0.04284,63528.0,63527.0,0.16326298]
[1719797355718,0.01484,63528.0,63527.0,0.16326298]
[1719797355983,0.01484,63528.0,63527.0,0.36641078]
[1719797356234,0.01484,63528.0,63527.0,1.86070448]
[1719797356235,0.02884,63528.0,63527.0,1.86070448]
[1719797356473,0.01484,63528.0,63527.0,1.86070448]
[1719797356724,0.02884,63528.0,63527.0,1.34587848]
[1719797356950,0.00084,63528.0,63527.0,1.34273068]
[1719797357189,0.02884,63528.0,63527.0,1.34273068]
[1719797357434,0.02884,63528.0,63527.0,0.76633068]
[1719797357923,0.02884,63528.0,63527.0,0.96633068]
[1719797358421,0.01484,63528.0,63527.0,0.96632768]
[1719797358650,0.00084,63528.0,63527.0,0.96632768]
[1719797358873,0.01484,63528.0,63527.0,0.96632768]
[1719797359155,0.57244,63528.0,63527.0,0.29408868]
[1719797359410,0.58644,63528.0,63527.0,0.29408868]
[1719797359635,0.58644,63528.0,63527.0,0.16326298]
[1719797360104,0.55844,63528.0,63527.0,0.16326298]
[1719797360349,0.58644,63528.0,63527.0,0.16326298]
[1719797361501,0.57244,63528.0,63527.0,0.16326298]
[1719797361956,0.58644,63528.0,63527.0,0.16326298]
[1719797362180,0.57244,63528.0,63527.0,0.16326298]
[1719797362907,0.57244,63528.0,63527.0,0.000924]
[1719797363134,0.58297003,63528.0,63527.0,0.000924]
[1719797363585,0.69697003,63528.0,63527.0,0.000924]
[1719797363811,0.85438003,63528.0,63527.0,0.000924]
[1719797364482,1.47002203,63528.0,63527.0,0.000924]
[1719797364707,1.15520103,63528.0,63527.0,0.000924]
[1719797364921,1.48402203,63528.0,63527.0,0.000924]
[1719797365141,1.80884303,63528.0,63527.0,0.000924]
[1719797365358,1.78084303,63528.0,63527.0,0.000924]
[1719797365602,1.78184303,63528.0,63527.0,0.000924]
[1719797365804,1.79584303,63528.0,63527.0,0.000924]
[1719797366006,1.78184303,63528.0,63527.0,0.000924]
[1719797366215,1.77084303,63528.0,63527.0,0.000924]
[1719797366422,1.77284303,63528.0,63527.0,0.000924]
[1719797367069,1.45802203,63528.0,63527.0,0.000924]
[1719797367491,1.45802203,63528.0,63527.0,1.000924]
[1719797369000,0.67097003,63528.0,63527.0,1.000924]
[1719797369214,0.82838003,63528.0,63527.0,1.000924]
[1719797370034,1.14320103,63528.0,63527.0,1.000924]
[1719797371222,0.10284,63528.0,63527.0,1.000924]
[1719797371445,0.57027003,63528.0,63527.0,1.000924]
[1719797371668,0.67027003,63528.0,63527.0,1.000924]
[1719797372078,0.66927003,63528.0,63527.0,1.000924]
[1719797372489,0.67027003,63528.0,63527.0,1.000924]
[1719797372894,0.66927003,63528.0,63527.0,1.000924]
[1719797373291,0.67027003,63528.0,63527.0,1.000924]
[1719797374332,0.65974,63528.0,63527.0,1.000924]
[1719797374548,0.67027003,63528.0,63527.0,1.000924]
[1719797377443,1.14250103,63528.0,63527.0,1.000924]
[1719797377840,0.82768003,63528.0,63527.0,1.000924]
[1719797378048,0.65974,63528.0,63527.0,1.000924]
[1719797378251,0.10084,63528.0,63527.0,1.000924]
[1719797378435,0.10184,63528.0,63527.0,1.007924]
[1719797378632,0.10284,63528.0,63527.0,1.014924]
[1719797378832,0.00284,63528.0,63527.0,1.17726298]
[1719797379056,0.00284,63528.0,63527.0,1.17026298]
[1719797379274,0.00184,63528.0,63527.0,1.17026298]
[1719797379661,0.01584,63528.0,63527.0,1.17126298]
[1719797379836,0.01584,63528.0,63527.0,1.17026298]
[1719797380067,0.00184,63528.0,63527.0,1.17026298]
[1719797380231,0.01584,63528.0,63527.0,1.17126298]
[1719797380743,0.01484,63528.0,63527.0,1.16426298]
[1719797380923,0.01484,63528.0,63527.0,1.73276298]
[1719797381123,0.02884,63528.0,63527.0,1.73276298]
[1719797386428,0.02884,63528.0,63527.0,1.16526298]
[1719797388844,0.02884,63528.0,63527.0,1.36526298]
[1719797389147,0.02884,63528.0,63527.0,1.52267598]
[1719797389933,0.02884,63528.0,63527.0,1.32267598]
[1719797390529,0.02884,63528.0,63527.0,1.16526298]
[1719797392943,0.02884,63528.0,63527.0,1.32267598]
[1719797393223,0.02884,63528.0,63527.0,2.39820198]
[1719797393772,0.02884,63528.0,63527.0,2.19820198]
[1719797394843,0.02884,63528.0,63527.0,2.39820198]
[1719797395565,0.02884,63528.0,63527.0,2.52902825]
[1719797395980,0.02884,63528.0,63527.0,2.32902825]
[1719797396200,0.02884,63528.0,63527.0,2.32902804]
[1719797396406,0.02884,63528.0,63527.0,1.85678904]
[1719797396612,0.02884,63528.0,63527.0,1.72596298]
[1719797396826,0.02884,63528.0,63527.0,1.48586298]
[1719797397878,0.57544,63528.0,63527.0,1.16526298]
[1719797398090,0.02884,63528.0,63527.0,1.16526298]
[1719797400375,0.02884,63528.0,63527.0,1.002924]
[1719797400597,1.07350103,63528.0,63527.0,1.002924]
[1719797401030,1.17350103,63528.0,63527.0,1.002924]
[1719797401238,1.17350103,63528.0,63527.0,1.001924]
[1719797401239,1.47432203,63528.0,63527.0,1.001924]
[1719797401658,1.16050103,63528.0,63527.0,1.007924]
[1719797402117,1.15950103,63528.0,63527.0,1.001924]
[1719797402351,1.16050103,63528.0,63527.0,1.007924]
[1719797403450,1.14650103,63528.0,63527.0,1.006924]
[1719797403656,1.14750103,63528.0,63527.0,1.019924]
[1719797404148,0.67427003,63528.0,63527.0,1.006924]
[1719797404381,0.10184,63528.0,63527.0,1.010924]
[1719797404618,0.00284,63528.0,63527.0,1.010924]
[1719797404842,0.10284,63528.0,63527.0,1.010924]
[1719797405068,0.00284,63528.0,63527.0,1.010924]
[1719797405541,0.00284,63528.0,63527.0,1.17326298]
[1719797405788,0.00284,63528.0,63527.0,1.66151166]
[1719797406033,0.00284,63528.0,63527.0,1.30409866]
[1719797406246,0.00284,63528.0,63527.0,1.66151166]
[1719797406460,0.00284,63528.0,63527.0,1.46151166]
[1719797406687,0.00184,63528.0,63527.0,1.45151166]
[1719797406899,0.00284,63528.0,63527.0,1.66451166]
[1719797407336,0.00184,63528.0,63527.0,1.46451166]
[1719797407539,0.00284,63528.0,63527.0,1.67651166]
[1719797407748,0.00184,63528.0,63527.0,1.66351166]
[1719797408213,0.01484,63528.0,63527.0,1.6525002]
[1719797408853,0.01484,63528.0,63527.0,2.6821522]
[1719797409089,0.01484,63528.0,63527.0,2.9969782]
[1719797409607,0.01484,63528.0,63527.0,3.4155375]
[1719797409860,0.01484,63528.0,63527.0,3.4165375]
[1719797410099,0.01484,63528.0,63527.0,3.34728814]
[1719797410333,0.01484,63528.0,63527.0,3.59960473]
[1719797410600,0.01484,63528.0,63527.0,3.1810782]
[1719797410843,0.01484,63528.0,63527.0,3.59859094]
[1719797411178,0.00084,63528.0,63527.0,3.59859094]
[1719797411345,0.01484,63528.0,63527.0,3.88040055]
[1719797411758,0.00084,63528.0,63527.0,3.87940055]
[1719797411973,0.00484,63528.0,63527.0,3.69730055]
[1719797412405,0.00484,63528.0,63527.0,3.88040055]
[1719797412649,0.00484,63528.0,63527.0,3.43955827]
[1719797412875,0.00484,63528.0,63527.0,3.12473227]
[1719797413076,0.00484,63528.0,63527.0,3.12373227]
[1719797413199,0.00484,63528.0,63527.0,2.75236182]
[1719797413403,0.00084,63528.0,63527.0,2.75136182]
[1719797413602,0.00084,63528.0,63527.0,2.7523636]
[1719797413603,0.01484,63528.0,63527.0,2.7523636]
[1719797413833,0.01484,63528.0,63527.0,2.82159075]
[1719797414840,0.00084,63528.0,63527.0,2.82059075]
[1719797415059,0.00084,63528.0,63527.0,2.82159075]
[1719797415060,0.01484,63528.0,63527.0,2.82159075]
[1719797415643,0.01484,63528.0,63527.0,2.7523636]
[1719797416070,0.01484,63528.0,63527.0,2.7513636]
[1719797416497,0.00084,63528.0,63527.0,2.7503636]
[1719797416982,0.01484,63528.0,63527.0,2.83366706]
[1719797417286,0.01484,63528.0,63527.0,2.83166706]
[1719797417468,0.00084,63528.0,63527.0,2.75036205]
[1719797417664,0.01484,63528.0,63527.0,2.75136204]
[1719797417871,0.01484,63528.0,63527.0,3.06618804]
[1719797418071,0.01484,63528.0,63527.0,3.41721867]
[1719797418272,0.01484,63528.0,63527.0,3.51721867]
[1719797418928,0.00084,63528.0,63527.0,3.51621867]
[1719797419105,0.00084,63528.0,63527.0,3.86549491]
[1719797420145,0.01484,63528.0,63527.0,3.86549491]
[1719797420584,0.00084,63528.0,63527.0,3.38540524]
[1719797420799,0.00084,63528.0,63527.0,3.86548296]
[1719797421013,0.01484,63528.0,63527.0,3.86648296]
[1719797421483,0.00084,63528.0,63527.0,4.04858296]
[1719797421714,0.01484,63528.0,63527.0,4.04958296]
[1719797421942,0.01484,63528.0,63527.0,4.04858296]
[1719797423074,0.01484,63528.0,63527.0,4.04758296]
[1719797423301,0.00084,63528.0,63527.0,4.04858296]
[1719797423541,0.01384,63528.0,63527.0,4.04858296]
[1719797423995,0.00084,63528.0,63527.0,4.04858296]
[1719797424198,0.01384,63528.0,63527.0,4.04958296]
[1719797425920,0.01053003,63556.0,63547.0,0.2]
[1719797426135,0.48811044,63550.0,63548.0,0.16548574]
[1719797426362,0.01053003,63556.0,63548.0,0.16233898]
[1719797426581,0.01053003,63557.0,63548.0,0.16233898]
[1719797426805,0.02667244,63559.0,63548.0,0.16233898]
[1719797426806,0.01053003,63558.0,63548.0,0.16233898]
[1719797427037,0.02667244,63559.0,63548.0,0.16233898]
[1719797427038,0.01053003,63557.0,63548.0,0.16233898]
[1719797427275,0.014,63556.0,63549.0,0.00314676]
[1719797427536,0.014,63556.0,63550.0,0.16233898]
[1719797427707,0.01053003,63557.0,63550.0,0.16233898]
[1719797428171,0.03720247,63559.0,63550.0,0.16233898]
[1719797428389,0.01053003,63556.0,63550.0,0.16233898]
[1719797429061,0.014,63557.0,63550.0,0.16233898]
[1719797429974,0.01053003,63558.0,63550.0,0.16233898]
[1719797430430,0.01053003,63555.0,63550.0,0.16333898]
[1719797430668,0.01053003,63551.0,63550.0,0.16333898]
[1719797430894,0.01046777,63557.0,63551.0,0.063016]
[1719797431147,0.01046777,63555.0,63551.0,0.063016]
[1719797431819,0.02667244,63559.0,63552.0,0.16233898]
[1719797432040,0.02667244,63559.0,63554.0,0.2]
[1719797432262,0.02667244,63559.0,63555.0,0.16548548]
[1719797433157,0.00084,63559.0,63555.0,0.16548548]
[1719797433376,0.00084,63559.0,63556.0,0.44544701]
[1719797433674,0.00084,63559.0,63557.0,0.16548517]
[1719797433896,0.00084,63559.0,63557.0,0.32764909]
[1719797434112,0.00084,63559.0,63558.0,0.157336]
[1719797434331,0.00084,63559.0,63558.0,1.41526708]
[1719797434552,0.00084,63559.0,63558.0,1.54602981]
[1719797435178,0.00284,63559.0,63558.0,1.54602981]
[1719797435425,0.00284,63559.0,63558.0,1.34602981]
[1719797435645,0.00084,63559.0,63558.0,1.34288371]
[1719797435859,0.00084,63559.0,63558.0,1.34288302]
[1719797436083,0.00084,63559.0,63558.0,1.21212098]
[1719797436329,0.00084,63559.0,63558.0,1.34288282]
[1719797436568,0.00084,63559.0,63558.0,1.41212098]
[1719797436796,0.00084,63559.0,63558.0,1.54288252]
[1719797437013,0.00084,63559.0,63558.0,1.93478252]
[1719797437231,0.00284,63559.0,63558.0,2.00402098]
[1719797437477,0.00284,63559.0,63558.0,2.13478229]